Workbook

Sheet Trough
A1: Filling a Trapezoidal Watering Trough
B3: This DIGMath module lets you investigate
B4: the related rates calculus problem of finding
B5: the rate dy/dt at which the height y
B6: of water in a trapezoidal trough
B7: is increasing when the water is flowing in
C8: at a given rate dV/dt.
A11: What is the height H of the trough (20 - 50 cm's)?
D12: 22 | E12: =#REF!+D12*(#REF!-#REF!)/100 ->  | F12: =2*D12 -> 44
A14: What is the length L (50 - 150 cm's) of the trough?
D15: 20 | E15: =#REF!+D15*(#REF!-#REF!)/100 ->  | F15: =5*D15 -> 100
A17: What is the lower base a (5 - 15 cm's) of the trough?
D18: 10 | E18: =#REF!+D18*(#REF!-#REF!)/100 ->  | F18: =D18 -> 10
A20: What is the upper base b (15 - 40 cm's) of the trough?
D21: 21 | E21: =#REF!+D21*(#REF!-#REF!)/100 ->  | F21: =D21 -> 21
A23: How fast (dV/dt) does the water flow | L23: Select the height y of the water: y = | P23: =20+O24*(H-20)/100 -> 27.68 | Q23: cm | R23: Time = | S23: =Sheet2!C206 -> 465.7 | T23: seconds
B24: into the trough (30 to 150 cc's per second)? | O24: 32 | P24: =Sheet2!#REF!+O24*(Sheet2!#REF!-Sheet2!#REF!)/100 -> 
D25: 16 | E25: =#REF!+D25*(#REF!-#REF!)/100 ->  | F25: =5*D25 -> 80
N26: The volume of the water is | P26: =Sheet2!E206 -> 37257 | Q26: cc's
K28: The height of the water is increasing at a rate of | P28: =Sheet2!H209 -> 0.047 | Q28: cm's per second at this point
A29: Click each item below for suggestions and investigations
C30: Item 1
C31: Item 2
C32: Item 3
A36: To access/download all the DIGMath Apps for Calculus
A37: Click this link: | C37: DIGMath for Calculus
A39: Created by: Sheldon P. Gordon
A40: Farmingdale State College
A41: Development of this module was supported by the
A42: NSF's Division of Undergraduate Education
A43: under grants DUE-0310123 and DUE-0442160.

Sheet Sheet2
B1: Height y | C1: t | D1: slope | E1: Volume | F1: dy/dt | G1: x | H1: y
L2: H = | M2: =H -> 44 | O2: (x-a)/2 | P2: "=" | Q2: (b-a)/2
A3: 0 | B3: 0 | C3: 0.0 | D3: =($M$2-$M$5)/B3 ->  | E3: 0 | F3: =(H4-H3)/dt -> 0.08 | G3: =aa -> 10.00 | H3: 0.00 | L3: L = | M3: =L -> 100 | O3: y | Q3: H
A4: 1 | B4: =E4*RMax/HMax -> 775 | C4: =C3+dt -> 4.3 | D4: =($M$2-$M$5)/B4 -> 0.044 | E4: =E3+dV -> 341 | F4: 0.08 | G4: =SQRT(aa^2+2*(bb-aa)/H/L*E4) -> 10.08 | H4: =H/(bb-aa)*(G4-aa) -> 0.34 | L4: rate = | M4: =rate -> 80
A5: 2 | B5: 1550 | C5: 8.5 | D5: 0.022 | E5: 682 | F5: 0.08 | G5: 10.17 | H5: 0.68 | L5: a = | M5: =aa -> 10 | O5: x=a+(b-a)/H*y
A6: 3 | B6: 2325 | C6: 12.8 | D6: 0.015 | E6: 1023 | F6: 0.08 | G6: 10.25 | H6: 1.01 | L6: b = | M6: =bb -> 21 | O6: V = (L/2)[2aH + (b-a)y]
A7: 4 | B7: 3100 | C7: 17.1 | D7: 0.011 | E7: 1364 | F7: 0.08 | G7: 10.34 | H7: 1.34 | O7: V' = (L/2)(b-a)*y'
A8: 5 | B8: 3875 | C8: 21.3 | D8: 0.009 | E8: 1705 | F8: 0.08 | G8: 10.42 | H8: 1.67
A9: 6 | B9: 4650 | C9: 25.6 | D9: 0.007 | E9: 2046 | F9: 0.08 | G9: 10.50 | H9: 2.00
A10: 7 | B10: 5425 | C10: 29.8 | D10: 0.006 | E10: 2387 | F10: 0.08 | G10: 10.58 | H10: 2.32
A11: 8 | B11: 6200 | C11: 34.1 | D11: 0.005 | E11: 2728 | F11: 0.07 | G11: 10.66 | H11: 2.64 | O11: total volume = | P11: =0.5*(aa+bb)*H*L -> 68200 | Q11: cc's
A12: 9 | B12: 6975 | C12: 38.4 | D12: 0.005 | E12: 3069 | F12: 0.07 | G12: 10.74 | H12: 2.96 | O12: total time = | P12: =P11/rate -> 852.5 | Q12: seconds
A13: 10 | B13: 7750 | C13: 42.6 | D13: 0.004 | E13: 3410 | F13: 0.07 | G13: 10.82 | H13: 3.28 | O13: dt = | P13: =time/200 -> 4.2625 | Q13: seconds
A14: 11 | B14: 8525 | C14: 46.9 | D14: 0.004 | E14: 3751 | F14: 0.07 | G14: 10.90 | H14: 3.59 | K14: First Chart | O14: dV = | P14: =dt*rate -> 341 | Q14: cc's
A15: 12 | B15: 9300 | C15: 51.2 | D15: 0.004 | E15: 4092 | F15: 0.07 | G15: 10.98 | H15: 3.90 | K15: Vertical Line | O15: dy = | P15: =HMax/200 -> 0.22
A16: 13 | B16: 10075 | C16: 55.4 | D16: 0.003 | E16: 4433 | F16: 0.07 | G16: 11.05 | H16: 4.21 | L16: =H206 -> 27.68 | M16: 0
A17: 14 | B17: 10850 | C17: 59.7 | D17: 0.003 | E17: 4774 | F17: 0.07 | G17: 11.13 | H17: 4.52 | L17: =K20 -> 27.68 | M17: =E206 -> 37257.28
A18: 15 | B18: 11625 | C18: 63.9 | D18: 0.003 | E18: 5115 | F18: 0.07 | G18: 11.21 | H18: 4.82
A19: 16 | B19: 12400 | C19: 68.2 | D19: 0.003 | E19: 5456 | F19: 0.07 | G19: 11.28 | H19: 5.13 | K19: Point
A20: 17 | B20: 13175 | C20: 72.5 | D20: 0.003 | E20: 5797 | F20: 0.07 | G20: 11.36 | H20: 5.43 | K20: =x0 -> 27.68 | L20: =M17 -> 37257
A21: 18 | B21: 13950 | C21: 76.7 | D21: 0.002 | E21: 6138 | F21: 0.07 | G21: 11.43 | H21: 5.73 | O21: =aa -> 10
A22: 19 | B22: 14725 | C22: 81.0 | D22: 0.002 | E22: 6479 | F22: 0.07 | G22: 11.51 | H22: 6.03 | K22: Second Chart | O22: =bb -> 21
A23: 20 | B23: 15500 | C23: 85.3 | D23: 0.002 | E23: 6820 | F23: 0.07 | G23: 11.58 | H23: 6.32 | K23: Vertical Line | O23: =H -> 44
A24: 21 | B24: 16275 | C24: 89.5 | D24: 0.002 | E24: 7161 | F24: 0.07 | G24: 11.65 | H24: 6.61 | L24: =C206 -> 465.716 | M24: 0 | O24: =L -> 100
A25: 22 | B25: 17050 | C25: 93.8 | D25: 0.002 | E25: 7502 | F25: 0.07 | G25: 11.73 | H25: 6.91 | L25: =L24 -> 465.716 | M25: =E206 -> 37257.28
A26: 23 | B26: 17825 | C26: 98.0 | D26: 0.002 | E26: 7843 | F26: 0.07 | G26: 11.80 | H26: 7.20
A27: 24 | B27: 18600 | C27: 102.3 | D27: 0.002 | E27: 8184 | F27: 0.07 | G27: 11.87 | H27: 7.48
A28: 25 | B28: 19375 | C28: 106.6 | D28: 0.002 | E28: 8525 | F28: 0.07 | G28: 11.94 | H28: 7.77
A29: 26 | B29: 20150 | C29: 110.8 | D29: 0.002 | E29: 8866 | F29: 0.07 | G29: 12.01 | H29: 8.05
A30: 27 | B30: 20925 | C30: 115.1 | D30: 0.002 | E30: 9207 | F30: 0.07 | G30: 12.08 | H30: 8.34
A31: 28 | B31: 21700 | C31: 119.4 | D31: 0.002 | E31: 9548 | F31: 0.07 | G31: 12.15 | H31: 8.62
A32: 29 | B32: 22475 | C32: 123.6 | D32: 0.002 | E32: 9889 | F32: 0.07 | G32: 12.22 | H32: 8.90 | K32: Third Chart
A33: 30 | B33: 23250 | C33: 127.9 | D33: 0.001 | E33: 10230 | F33: 0.06 | G33: 12.29 | H33: 9.18 | K33: Vertical Line
A34: 31 | B34: 24025 | C34: 132.1 | D34: 0.001 | E34: 10571 | F34: 0.06 | G34: 12.36 | H34: 9.45 | L34: =C207 -> 465.726 | M34: 0
A35: 32 | B35: 24800 | C35: 136.4 | D35: 0.001 | E35: 10912 | F35: =(H36-H35)/dt -> 0.06 | G35: 12.43 | H35: 9.73 | L35: =L34 -> 465.726 | M35: =H209 -> 0.04728115873
A36: 33 | B36: =E36*RMax/HMax -> 25575 | C36: =C35+dt -> 140.7 | D36: 0.001 | E36: =E35+dV -> 11253 | F36: 0.06 | G36: =SQRT(aa^2+2*(bb-aa)/H/L*E36) -> 12.50 | H36: =H/(bb-aa)*(G36-aa) -> 10.00
A37: 34 | B37: 26350 | C37: 144.9 | D37: 0.001 | E37: 11594 | F37: 0.06 | G37: 12.57 | H37: 10.27
A38: 35 | B38: 27125 | C38: 149.2 | D38: 0.001 | E38: 11935 | F38: 0.06 | G38: 12.64 | H38: 10.55
A39: 36 | B39: 27900 | C39: 153.5 | D39: 0.001 | E39: 12276 | F39: 0.06 | G39: 12.70 | H39: 10.81
A40: 37 | B40: 28675 | C40: 157.7 | D40: 0.001 | E40: 12617 | F40: 0.06 | G40: 12.77 | H40: 11.08
A41: 38 | B41: 29450 | C41: 162.0 | D41: 0.001 | E41: 12958 | F41: 0.06 | G41: 12.84 | H41: 11.35
A42: 39 | B42: 30225 | C42: 166.2 | D42: 0.001 | E42: 13299 | F42: 0.06 | G42: 12.90 | H42: 11.61
A43: 40 | B43: 31000 | C43: 170.5 | D43: 0.001 | E43: 13640 | F43: 0.06 | G43: 12.97 | H43: 11.88
A44: 41 | B44: 31775 | C44: 174.8 | D44: 0.001 | E44: 13981 | F44: 0.06 | G44: 13.03 | H44: 12.14
A45: 42 | B45: 32550 | C45: 179.0 | D45: 0.001 | E45: 14322 | F45: 0.06 | G45: 13.10 | H45: 12.40
A46: 43 | B46: 33325 | C46: 183.3 | D46: 0.001 | E46: 14663 | F46: 0.06 | G46: 13.16 | H46: 12.66
A47: 44 | B47: 34100 | C47: 187.6 | D47: 0.001 | E47: 15004 | F47: 0.06 | G47: 13.23 | H47: 12.92
A48: 45 | B48: 34875 | C48: 191.8 | D48: 0.001 | E48: 15345 | F48: 0.06 | G48: 13.29 | H48: 13.18
A49: 46 | B49: 35650 | C49: 196.1 | D49: 0.001 | E49: 15686 | F49: 0.06 | G49: 13.36 | H49: 13.43
A50: 47 | B50: 36425 | C50: 200.3 | D50: 0.001 | E50: 16027 | F50: 0.06 | G50: 13.42 | H50: 13.69
A51: 48 | B51: 37200 | C51: 204.6 | D51: 0.001 | E51: 16368 | F51: 0.06 | G51: 13.48 | H51: 13.94
A52: 49 | B52: 37975 | C52: 208.9 | D52: 0.001 | E52: 16709 | F52: 0.06 | G52: 13.55 | H52: 14.19
A53: 50 | B53: 38750 | C53: 213.1 | D53: 0.001 | E53: 17050 | F53: 0.06 | G53: 13.61 | H53: 14.44
A54: 51 | B54: 39525 | C54: 217.4 | D54: 0.001 | E54: 17391 | F54: 0.06 | G54: 13.67 | H54: 14.69
A55: 52 | B55: 40300 | C55: 221.7 | D55: 0.001 | E55: 17732 | F55: 0.06 | G55: 13.74 | H55: 14.94
A56: 53 | B56: 41075 | C56: 225.9 | D56: 0.001 | E56: 18073 | F56: 0.06 | G56: 13.80 | H56: 15.19
A57: 54 | B57: 41850 | C57: 230.2 | D57: 0.001 | E57: 18414 | F57: 0.06 | G57: 13.86 | H57: 15.44
A58: 55 | B58: 42625 | C58: 234.4 | D58: 0.001 | E58: 18755 | F58: 0.06 | G58: 13.92 | H58: 15.68
A59: 56 | B59: 43400 | C59: 238.7 | D59: 0.001 | E59: 19096 | F59: 0.06 | G59: 13.98 | H59: 15.93
A60: 57 | B60: 44175 | C60: 243.0 | D60: 0.001 | E60: 19437 | F60: 0.06 | G60: 14.04 | H60: 16.17
A61: 58 | B61: 44950 | C61: 247.2 | D61: 0.001 | E61: 19778 | F61: 0.06 | G61: 14.10 | H61: 16.41
A62: 59 | B62: 45725 | C62: 251.5 | D62: 0.001 | E62: 20119 | F62: 0.06 | G62: 14.16 | H62: 16.65
A63: 60 | B63: 46500 | C63: 255.8 | D63: 0.001 | E63: 20460 | F63: 0.06 | G63: 14.22 | H63: 16.89
A64: 61 | B64: 47275 | C64: 260.0 | D64: 0.001 | E64: 20801 | F64: 0.06 | G64: 14.28 | H64: 17.13
A65: 62 | B65: 48050 | C65: 264.3 | D65: 0.001 | E65: 21142 | F65: 0.06 | G65: 14.34 | H65: 17.37
A66: 63 | B66: 48825 | C66: 268.5 | D66: 0.001 | E66: 21483 | F66: 0.06 | G66: 14.40 | H66: 17.61
A67: 64 | B67: 49600 | C67: 272.8 | D67: 0.001 | E67: 21824 | F67: =(H68-H67)/dt -> 0.06 | G67: 14.46 | H67: 17.84
A68: 65 | B68: =E68*RMax/HMax -> 50375 | C68: =C67+dt -> 277.1 | D68: =($M$2-$M$5)/B68 -> 0.001 | E68: =E67+dV -> 22165 | F68: 0.05 | G68: =SQRT(aa^2+2*(bb-aa)/H/L*E68) -> 14.52 | H68: =H/(bb-aa)*(G68-aa) -> 18.08
A69: 66 | B69: 51150 | C69: 281.3 | D69: 0.001 | E69: 22506 | F69: 0.05 | G69: 14.58 | H69: 18.31
A70: 67 | B70: 51925 | C70: 285.6 | D70: 0.001 | E70: 22847 | F70: 0.05 | G70: 14.64 | H70: 18.55
A71: 68 | B71: 52700 | C71: 289.9 | D71: 0.001 | E71: 23188 | F71: 0.05 | G71: 14.69 | H71: 18.78
A72: 69 | B72: 53475 | C72: 294.1 | D72: 0.001 | E72: 23529 | F72: 0.05 | G72: 14.75 | H72: 19.01
A73: 70 | B73: 54250 | C73: 298.4 | D73: 0.001 | E73: 23870 | F73: 0.05 | G73: 14.81 | H73: 19.24
A74: 71 | B74: 55025 | C74: 302.6 | D74: 0.001 | E74: 24211 | F74: 0.05 | G74: 14.87 | H74: 19.47
A75: 72 | B75: 55800 | C75: 306.9 | D75: 0.001 | E75: 24552 | F75: 0.05 | G75: 14.93 | H75: 19.70
A76: 73 | B76: 56575 | C76: 311.2 | D76: 0.001 | E76: 24893 | F76: 0.05 | G76: 14.98 | H76: 19.93
A77: 74 | B77: 57350 | C77: 315.4 | D77: 0.001 | E77: 25234 | F77: 0.05 | G77: 15.04 | H77: 20.16
A78: 75 | B78: 58125 | C78: 319.7 | D78: 0.001 | E78: 25575 | F78: 0.05 | G78: 15.10 | H78: 20.38
A79: 76 | B79: 58900 | C79: 324.0 | D79: 0.001 | E79: 25916 | F79: 0.05 | G79: 15.15 | H79: 20.61
A80: 77 | B80: 59675 | C80: 328.2 | D80: 0.001 | E80: 26257 | F80: 0.05 | G80: 15.21 | H80: 20.83
A81: 78 | B81: 60450 | C81: 332.5 | D81: 0.001 | E81: 26598 | F81: 0.05 | G81: 15.26 | H81: 21.06
A82: 79 | B82: 61225 | C82: 336.7 | D82: 0.001 | E82: 26939 | F82: 0.05 | G82: 15.32 | H82: 21.28
A83: 80 | B83: 62000 | C83: 341.0 | D83: 0.001 | E83: 27280 | F83: 0.05 | G83: 15.38 | H83: 21.50
A84: 81 | B84: 62775 | C84: 345.3 | D84: 0.001 | E84: 27621 | F84: 0.05 | G84: 15.43 | H84: 21.72
A85: 82 | B85: 63550 | C85: 349.5 | D85: 0.001 | E85: 27962 | F85: 0.05 | G85: 15.49 | H85: 21.94
A86: 83 | B86: 64325 | C86: 353.8 | D86: 0.001 | E86: 28303 | F86: 0.05 | G86: 15.54 | H86: 22.16
A87: 84 | B87: 65100 | C87: 358.0 | D87: 0.001 | E87: 28644 | F87: 0.05 | G87: 15.60 | H87: 22.38
A88: 85 | B88: 65875 | C88: 362.3 | D88: 0.001 | E88: 28985 | F88: 0.05 | G88: 15.65 | H88: 22.60
A89: 86 | B89: 66650 | C89: 366.6 | D89: 0.001 | E89: 29326 | F89: 0.05 | G89: 15.70 | H89: 22.82
A90: 87 | B90: 67425 | C90: 370.8 | D90: 0.001 | E90: 29667 | F90: 0.05 | G90: 15.76 | H90: 23.03
A91: 88 | B91: 68200 | C91: 375.1 | D91: 0.000 | E91: 30008 | F91: 0.05 | G91: 15.81 | H91: 23.25
A92: 89 | B92: 68975 | C92: 379.4 | D92: 0.000 | E92: 30349 | F92: 0.05 | G92: 15.87 | H92: 23.47
A93: 90 | B93: 69750 | C93: 383.6 | D93: 0.000 | E93: 30690 | F93: 0.05 | G93: 15.92 | H93: 23.68
A94: 91 | B94: 70525 | C94: 387.9 | D94: 0.000 | E94: 31031 | F94: 0.05 | G94: 15.97 | H94: 23.89
A95: 92 | B95: 71300 | C95: 392.1 | D95: 0.000 | E95: 31372 | F95: 0.05 | G95: 16.03 | H95: 24.11
A96: 93 | B96: 72075 | C96: 396.4 | D96: 0.000 | E96: 31713 | F96: 0.05 | G96: 16.08 | H96: 24.32
A97: 94 | B97: 72850 | C97: 400.7 | D97: 0.000 | E97: 32054 | F97: 0.05 | G97: 16.13 | H97: 24.53
A98: 95 | B98: 73625 | C98: 404.9 | D98: 0.000 | E98: 32395 | F98: 0.05 | G98: 16.19 | H98: 24.74
A99: 96 | B99: 74400 | C99: 409.2 | D99: 0.000 | E99: 32736 | F99: =(H100-H99)/dt -> 0.05 | G99: 16.24 | H99: 24.95
A100: 97 | B100: 75175 | C100: 413.5 | D100: 0.000 | E100: 33077 | F100: 0.05 | G100: =SQRT(aa^2+2*(bb-aa)/H/L*E100) -> 16.29 | H100: =H/(bb-aa)*(G100-aa) -> 25.16
A101: 98 | B101: 75950 | C101: 417.7 | D101: 0.000 | E101: 33418 | F101: 0.05 | G101: 16.34 | H101: 25.37
A102: 99 | B102: 76725 | C102: 422.0 | D102: 0.000 | E102: 33759 | F102: 0.05 | G102: 16.39 | H102: 25.58
A103: 100 | B103: 77500 | C103: 426.2 | D103: 0.000 | E103: 34100 | F103: 0.05 | G103: 16.45 | H103: 25.79
A104: 101 | B104: =E104*RMax/HMax -> 78275 | C104: 430.5 | D104: =($M$2-$M$5)/B104 -> 0.000 | E104: 34441 | F104: 0.05 | G104: 16.50 | H104: 25.99
A105: 102 | B105: 79050 | C105: 434.8 | D105: 0.000 | E105: 34782 | F105: 0.05 | G105: 16.55 | H105: 26.20
A106: 103 | B106: 79825 | C106: 439.0 | D106: 0.000 | E106: 35123 | F106: 0.05 | G106: 16.60 | H106: 26.41
A107: 104 | B107: 80600 | C107: 443.3 | D107: 0.000 | E107: 35464 | F107: 0.05 | G107: 16.65 | H107: 26.61
A108: 105 | B108: 81375 | C108: 447.6 | D108: 0.000 | E108: 35805 | F108: 0.05 | G108: 16.70 | H108: 26.82
A109: 106 | B109: 82150 | C109: 451.8 | D109: 0.000 | E109: 36146 | F109: 0.05 | G109: 16.75 | H109: 27.02
A110: 107 | B110: 82925 | C110: 456.1 | D110: 0.000 | E110: 36487 | F110: 0.05 | G110: 16.81 | H110: 27.22
A111: 108 | B111: 83700 | C111: 460.3 | D111: 0.000 | E111: 36828 | F111: 0.05 | G111: 16.86 | H111: 27.43
A112: 109 | B112: 84475 | C112: 464.6 | D112: 0.000 | E112: 37169 | F112: 0.05 | G112: 16.91 | H112: 27.63
A113: 110 | B113: 85250 | C113: 468.9 | D113: 0.000 | E113: 37510 | F113: 0.05 | G113: 16.96 | H113: 27.83
A114: 111 | B114: 86025 | C114: 473.1 | D114: 0.000 | E114: 37851 | F114: 0.05 | G114: 17.01 | H114: 28.03
A115: 112 | B115: 86800 | C115: 477.4 | D115: 0.000 | E115: 38192 | F115: 0.05 | G115: 17.06 | H115: 28.23
A116: 113 | B116: 87575 | C116: 481.7 | D116: 0.000 | E116: 38533 | F116: 0.05 | G116: 17.11 | H116: 28.43
A117: 114 | B117: 88350 | C117: 485.9 | D117: 0.000 | E117: 38874 | F117: 0.05 | G117: 17.16 | H117: 28.63
A118: 115 | B118: 89125 | C118: 490.2 | D118: 0.000 | E118: 39215 | F118: 0.05 | G118: 17.21 | H118: 28.83
A119: 116 | B119: 89900 | C119: 494.4 | D119: 0.000 | E119: 39556 | F119: 0.05 | G119: 17.26 | H119: 29.03
A120: 117 | B120: 90675 | C120: 498.7 | D120: 0.000 | E120: 39897 | F120: 0.05 | G120: 17.31 | H120: 29.22
A121: 118 | B121: 91450 | C121: 503.0 | D121: 0.000 | E121: 40238 | F121: 0.05 | G121: 17.35 | H121: 29.42
A122: 119 | B122: 92225 | C122: 507.2 | D122: 0.000 | E122: 40579 | F122: 0.05 | G122: 17.40 | H122: 29.62
A123: 120 | B123: 93000 | C123: 511.5 | D123: 0.000 | E123: 40920 | F123: 0.05 | G123: 17.45 | H123: 29.81
A124: 121 | B124: 93775 | C124: 515.8 | D124: 0.000 | E124: 41261 | F124: 0.05 | G124: 17.50 | H124: 30.01
A125: 122 | B125: 94550 | C125: 520.0 | D125: 0.000 | E125: 41602 | F125: 0.05 | G125: 17.55 | H125: 30.20
A126: 123 | B126: 95325 | C126: 524.3 | D126: 0.000 | E126: 41943 | F126: 0.05 | G126: 17.60 | H126: 30.39
A127: 124 | B127: 96100 | C127: 528.5 | D127: 0.000 | E127: 42284 | F127: 0.05 | G127: 17.65 | H127: 30.59
A128: 125 | B128: 96875 | C128: 532.8 | D128: 0.000 | E128: 42625 | F128: 0.05 | G128: 17.70 | H128: 30.78
A129: 126 | B129: 97650 | C129: 537.1 | D129: 0.000 | E129: 42966 | F129: 0.05 | G129: 17.74 | H129: 30.97
A130: 127 | B130: 98425 | C130: 541.3 | D130: 0.000 | E130: 43307 | F130: 0.04 | G130: 17.79 | H130: 31.17
A131: 128 | B131: 99200 | C131: 545.6 | D131: 0.000 | E131: 43648 | F131: =(H132-H131)/dt -> 0.04 | G131: 17.84 | H131: 31.36
A132: 129 | B132: 99975 | C132: =C131+dt -> 549.9 | D132: 0.000 | E132: =E131+dV -> 43989 | F132: 0.04 | G132: =SQRT(aa^2+2*(bb-aa)/H/L*E132) -> 17.89 | H132: =H/(bb-aa)*(G132-aa) -> 31.55
A133: 130 | B133: 100750 | C133: 554.1 | D133: 0.000 | E133: 44330 | F133: 0.04 | G133: 17.93 | H133: 31.74
A134: 131 | B134: 101525 | C134: 558.4 | D134: 0.000 | E134: 44671 | F134: 0.04 | G134: 17.98 | H134: 31.93
A135: 132 | B135: 102300 | C135: 562.7 | D135: 0.000 | E135: 45012 | F135: 0.04 | G135: 18.03 | H135: 32.12
A136: 133 | B136: 103075 | C136: 566.9 | D136: 0.000 | E136: 45353 | F136: 0.04 | G136: 18.08 | H136: 32.31
A137: 134 | B137: 103850 | C137: 571.2 | D137: 0.000 | E137: 45694 | F137: 0.04 | G137: 18.12 | H137: 32.49
A138: 135 | B138: 104625 | C138: 575.4 | D138: 0.000 | E138: 46035 | F138: 0.04 | G138: 18.17 | H138: 32.68
A139: 136 | B139: 105400 | C139: 579.7 | D139: 0.000 | E139: 46376 | F139: 0.04 | G139: 18.22 | H139: 32.87
A140: 137 | B140: 106175 | C140: 584.0 | D140: 0.000 | E140: 46717 | F140: 0.04 | G140: 18.26 | H140: 33.06
A141: 138 | B141: 106950 | C141: 588.2 | D141: 0.000 | E141: 47058 | F141: 0.04 | G141: 18.31 | H141: 33.24
A142: 139 | B142: 107725 | C142: 592.5 | D142: 0.000 | E142: 47399 | F142: 0.04 | G142: 18.36 | H142: 33.43
A143: 140 | B143: 108500 | C143: 596.8 | D143: 0.000 | E143: 47740 | F143: 0.04 | G143: 18.40 | H143: 33.62
A144: 141 | B144: 109275 | C144: 601.0 | D144: 0.000 | E144: 48081 | F144: 0.04 | G144: 18.45 | H144: 33.80
A145: 142 | B145: 110050 | C145: 605.3 | D145: 0.000 | E145: 48422 | F145: 0.04 | G145: 18.50 | H145: 33.98
A146: 143 | B146: 110825 | C146: 609.5 | D146: 0.000 | E146: 48763 | F146: 0.04 | G146: 18.54 | H146: 34.17
A147: 144 | B147: 111600 | C147: 613.8 | D147: 0.000 | E147: 49104 | F147: 0.04 | G147: 18.59 | H147: 34.35
A148: 145 | B148: 112375 | C148: 618.1 | D148: 0.000 | E148: 49445 | F148: 0.04 | G148: 18.63 | H148: 34.54
A149: 146 | B149: 113150 | C149: 622.3 | D149: 0.000 | E149: 49786 | F149: 0.04 | G149: 18.68 | H149: 34.72
A150: 147 | B150: 113925 | C150: 626.6 | D150: 0.000 | E150: 50127 | F150: 0.04 | G150: 18.73 | H150: 34.90
A151: 148 | B151: 114700 | C151: 630.9 | D151: 0.000 | E151: 50468 | F151: 0.04 | G151: 18.77 | H151: 35.08
A152: 149 | B152: 115475 | C152: 635.1 | D152: 0.000 | E152: 50809 | F152: 0.04 | G152: 18.82 | H152: 35.26
A153: 150 | B153: 116250 | C153: 639.4 | D153: 0.000 | E153: 51150 | F153: 0.04 | G153: 18.86 | H153: 35.45
A154: 151 | B154: 117025 | C154: 643.6 | D154: 0.000 | E154: 51491 | F154: 0.04 | G154: 18.91 | H154: 35.63
A155: 152 | B155: 117800 | C155: 647.9 | D155: 0.000 | E155: 51832 | F155: 0.04 | G155: 18.95 | H155: 35.81
A156: 153 | B156: 118575 | C156: 652.2 | D156: 0.000 | E156: 52173 | F156: 0.04 | G156: 19.00 | H156: 35.99
A157: 154 | B157: 119350 | C157: 656.4 | D157: 0.000 | E157: 52514 | F157: 0.04 | G157: 19.04 | H157: 36.17
A158: 155 | B158: 120125 | C158: 660.7 | D158: 0.000 | E158: 52855 | F158: 0.04 | G158: 19.09 | H158: 36.34
A159: 156 | B159: 120900 | C159: 665.0 | D159: 0.000 | E159: 53196 | F159: 0.04 | G159: 19.13 | H159: 36.52
A160: 157 | B160: 121675 | C160: 669.2 | D160: 0.000 | E160: 53537 | F160: 0.04 | G160: 19.18 | H160: 36.70
A161: 158 | B161: 122450 | C161: 673.5 | D161: 0.000 | E161: 53878 | F161: 0.04 | G161: 19.22 | H161: 36.88
A162: 159 | B162: 123225 | C162: 677.7 | D162: 0.000 | E162: 54219 | F162: 0.04 | G162: 19.26 | H162: 37.06
A163: 160 | B163: 124000 | C163: 682.0 | D163: 0.000 | E163: 54560 | F163: =(H164-H163)/dt -> 0.04 | G163: 19.31 | H163: 37.23
A164: 161 | B164: 124775 | C164: 686.3 | D164: 0.000 | E164: 54901 | F164: 0.04 | G164: =SQRT(aa^2+2*(bb-aa)/H/L*E164) -> 19.35 | H164: =H/(bb-aa)*(G164-aa) -> 37.41
A165: 162 | B165: 125550 | C165: 690.5 | D165: 0.000 | E165: 55242 | F165: 0.04 | G165: 19.40 | H165: 37.58
A166: 163 | B166: 126325 | C166: 694.8 | D166: 0.000 | E166: 55583 | F166: 0.04 | G166: 19.44 | H166: 37.76
A167: 164 | B167: 127100 | C167: 699.1 | D167: 0.000 | E167: 55924 | F167: 0.04 | G167: 19.48 | H167: 37.94
A168: 165 | B168: =E168*RMax/HMax -> 127875 | C168: 703.3 | D168: =($M$2-$M$5)/B168 -> 0.000 | E168: 56265 | F168: 0.04 | G168: 19.53 | H168: 38.11
A169: 166 | B169: 128650 | C169: 707.6 | D169: 0.000 | E169: 56606 | F169: 0.04 | G169: 19.57 | H169: 38.28
A170: 167 | B170: 129425 | C170: 711.8 | D170: 0.000 | E170: 56947 | F170: 0.04 | G170: 19.61 | H170: 38.46
A171: 168 | B171: 130200 | C171: 716.1 | D171: 0.000 | E171: 57288 | F171: 0.04 | G171: 19.66 | H171: 38.63
A172: 169 | B172: 130975 | C172: 720.4 | D172: 0.000 | E172: 57629 | F172: 0.04 | G172: 19.70 | H172: 38.81
A173: 170 | B173: 131750 | C173: 724.6 | D173: 0.000 | E173: 57970 | F173: 0.04 | G173: 19.74 | H173: 38.98
A174: 171 | B174: 132525 | C174: 728.9 | D174: 0.000 | E174: 58311 | F174: 0.04 | G174: 19.79 | H174: 39.15
A175: 172 | B175: 133300 | C175: 733.2 | D175: 0.000 | E175: 58652 | F175: 0.04 | G175: 19.83 | H175: 39.32
A176: 173 | B176: 134075 | C176: 737.4 | D176: 0.000 | E176: 58993 | F176: 0.04 | G176: 19.87 | H176: 39.49
A177: 174 | B177: 134850 | C177: 741.7 | D177: 0.000 | E177: 59334 | F177: 0.04 | G177: 19.92 | H177: 39.67
A178: 175 | B178: 135625 | C178: 745.9 | D178: 0.000 | E178: 59675 | F178: 0.04 | G178: 19.96 | H178: 39.84
A179: 176 | B179: 136400 | C179: 750.2 | D179: 0.000 | E179: 60016 | F179: 0.04 | G179: 20.00 | H179: 40.01
A180: 177 | B180: 137175 | C180: 754.5 | D180: 0.000 | E180: 60357 | F180: 0.04 | G180: 20.04 | H180: 40.18
A181: 178 | B181: 137950 | C181: 758.7 | D181: 0.000 | E181: 60698 | F181: 0.04 | G181: 20.09 | H181: 40.35
A182: 179 | B182: 138725 | C182: 763.0 | D182: 0.000 | E182: 61039 | F182: 0.04 | G182: 20.13 | H182: 40.52
A183: 180 | B183: 139500 | C183: 767.3 | D183: 0.000 | E183: 61380 | F183: 0.04 | G183: 20.17 | H183: 40.69
A184: 181 | B184: 140275 | C184: 771.5 | D184: 0.000 | E184: 61721 | F184: 0.04 | G184: 20.21 | H184: 40.86
A185: 182 | B185: 141050 | C185: 775.8 | D185: 0.000 | E185: 62062 | F185: 0.04 | G185: 20.26 | H185: 41.02
A186: 183 | B186: 141825 | C186: 780.0 | D186: 0.000 | E186: 62403 | F186: 0.04 | G186: 20.30 | H186: 41.19
A187: 184 | B187: 142600 | C187: 784.3 | D187: 0.000 | E187: 62744 | F187: 0.04 | G187: 20.34 | H187: 41.36
A188: 185 | B188: 143375 | C188: 788.6 | D188: 0.000 | E188: 63085 | F188: 0.04 | G188: 20.38 | H188: 41.53
A189: 186 | B189: 144150 | C189: 792.8 | D189: 0.000 | E189: 63426 | F189: 0.04 | G189: 20.42 | H189: 41.70
A190: 187 | B190: 144925 | C190: 797.1 | D190: 0.000 | E190: 63767 | F190: 0.04 | G190: 20.47 | H190: 41.86
A191: 188 | B191: 145700 | C191: 801.4 | D191: 0.000 | E191: 64108 | F191: 0.04 | G191: 20.51 | H191: 42.03
A192: 189 | B192: 146475 | C192: 805.6 | D192: 0.000 | E192: 64449 | F192: 0.04 | G192: 20.55 | H192: 42.19
A193: 190 | B193: 147250 | C193: 809.9 | D193: 0.000 | E193: 64790 | F193: 0.04 | G193: 20.59 | H193: 42.36
A194: 191 | B194: 148025 | C194: 814.1 | D194: 0.000 | E194: 65131 | F194: 0.04 | G194: 20.63 | H194: 42.53
A195: 192 | B195: 148800 | C195: 818.4 | D195: 0.000 | E195: 65472 | F195: =(H196-H195)/dt -> 0.04 | G195: 20.67 | H195: 42.69
A196: 193 | B196: 149575 | C196: =C195+dt -> 822.7 | D196: 0.000 | E196: =E195+dV -> 65813 | F196: 0.04 | G196: =SQRT(aa^2+2*(bb-aa)/H/L*E196) -> 20.71 | H196: =H/(bb-aa)*(G196-aa) -> 42.86
A197: 194 | B197: 150350 | C197: 826.9 | D197: 0.000 | E197: 66154 | F197: 0.04 | G197: 20.75 | H197: 43.02
A198: 195 | B198: 151125 | C198: 831.2 | D198: 0.000 | E198: 66495 | F198: 0.04 | G198: 20.80 | H198: 43.18
A199: 196 | B199: 151900 | C199: 835.5 | D199: 0.000 | E199: 66836 | F199: 0.04 | G199: 20.84 | H199: 43.35
A200: 197 | B200: 152675 | C200: 839.7 | D200: 0.000 | E200: 67177 | F200: 0.04 | G200: 20.88 | H200: 43.51
... 7 more rows

Sheet Sheet1
